bitfinex/quotes_BTCUSD_20251104
["timestamp","ask_amount","ask_price","bid_price","bid_amount"]
[1762295821902,0.03737,101660.0,101650.0,0.31847725]
[1762295822115,0.03327,101660.0,101650.0,0.31847725]
[1762295822329,0.03327,101660.0,101650.0,0.34247725]
[1762295822968,0.03327,101660.0,101650.0,0.20172369]
[1762295823109,0.23000421,101660.0,101650.0,0.1122237]
[1762295823311,0.30851421,101660.0,101650.0,0.11346949]
[1762295823914,0.19671511,101670.0,101650.0,0.31022305]
[1762295824133,1.12034774,101680.0,101660.0,0.00949999]
[1762295824335,1.04825774,101680.0,101670.0,0.00949999]
[1762295824758,0.19671486,101670.0,101650.0,0.34281493]
[1762295824965,0.19671486,101670.0,101660.0,0.00949999]
[1762295825164,1.12718774,101680.0,101670.0,0.00949999]
[1762295825165,1.07838774,101680.0,101670.0,0.00949999]
[1762295825575,1.12699774,101680.0,101670.0,0.00949999]
[1762295826390,0.19671486,101670.0,101660.0,0.00949999]
[1762295826858,0.31269808,101670.0,101660.0,0.00949999]
[1762295827055,0.19673421,101660.0,101650.0,0.1122237]
[1762295827254,0.89901941,101660.0,101650.0,0.1122237]
[1762295828409,0.94520168,101660.0,101650.0,0.1122237]
[1762295828975,0.19677292,101640.0,101630.0,0.36177272]
[1762295829110,0.82043812,101640.0,101630.0,0.36225361]
[1762295829301,0.82043812,101640.0,101630.0,0.35275362]
[1762295829302,0.89252812,101640.0,101630.0,0.35275362]
[1762295829706,0.89252812,101640.0,101630.0,0.35449805]
[1762295830327,2.93871039,101640.0,101630.0,0.35449805]
[1762295830527,3.56206559,101640.0,101630.0,0.35449805]
[1762295830730,3.90206559,101640.0,101630.0,0.35449805]
[1762295830988,0.28217487,101620.0,101610.0,0.0004]
[1762295831188,3.31761235,101620.0,101610.0,0.0004]
[1762295831393,3.39345235,101620.0,101610.0,0.0004]
[1762295831597,3.40345234,101620.0,101610.0,0.0004]
[1762295832430,0.19685039,101600.0,101590.0,0.0004]
[1762295832647,1.57586628,101600.0,101590.0,0.0005443]
[1762295832839,1.60599401,101600.0,101590.0,0.0005443]
[1762295833150,0.98263881,101600.0,101590.0,0.0005443]
[1762295833920,1.02882108,101600.0,101590.0,0.0005443]
[1762295834210,1.65217628,101600.0,101590.0,0.0005443]
[1762295835110,0.36906472,101600.0,101590.0,0.0005443]
[1762295835324,0.99241992,101600.0,101590.0,0.01004429]
[1762295836008,0.99241992,101600.0,101590.0,0.0005443]
[1762295836211,1.32946717,101600.0,101590.0,0.0005443]
[1762295836419,1.36564945,101600.0,101590.0,0.0005443]
[1762295837000,0.97968606,101600.0,101590.0,0.0005443]
[1762295837179,0.97968606,101600.0,101590.0,0.0245443]
[1762295837365,0.97968606,101600.0,101590.0,0.02554191]
[1762295837561,0.35633086,101600.0,101590.0,0.02554191]
[1762295838004,0.97968606,101600.0,101590.0,0.02554191]
[1762295838418,1.63922354,101600.0,101590.0,0.00154191]
[1762295838630,0.39251314,101600.0,101590.0,0.00154191]
[1762295839410,2.73251314,101600.0,101590.0,0.00154191]
[1762295839605,2.74251313,101600.0,101590.0,0.00154191]
[1762295840192,0.73251314,101600.0,101590.0,0.00154191]
[1762295840589,0.35633086,101600.0,101590.0,0.00154191]
[1762295840792,0.35633086,101600.0,101590.0,0.0350419]
[1762295841014,0.07707,101600.0,101590.0,0.02554191]
[1762295841178,0.07707,101600.0,101590.0,0.0350419]
[1762295841380,0.27392039,101600.0,101590.0,0.0350419]
[1762295842374,0.35928361,101600.0,101590.0,0.00154191]
[1762295842746,0.73546589,101600.0,101590.0,0.00154191]
[1762295843104,0.74546588,101600.0,101590.0,0.00154191]
[1762295843591,2.74546588,101600.0,101590.0,0.00154191]
[1762295844550,2.69928361,101600.0,101590.0,0.00154191]
[1762295844726,0.69928361,101600.0,101590.0,0.00154191]
[1762295844937,0.61392039,101600.0,101590.0,0.06440191]
[1762295845143,0.23578223,101620.0,101590.0,0.37077167]
[1762295845326,0.31209223,101620.0,101610.0,0.03349999]
[1762295845541,0.10544,101620.0,101610.0,0.03349999]
[1762295845741,0.14536,101620.0,101610.0,0.03349999]
[1762295845959,0.14536,101620.0,101610.0,0.23033101]
[1762295845960,0.06905,101620.0,101610.0,0.23033101]
[1762295846159,0.0769,101620.0,101610.0,0.03349999]
[1762295846387,0.30387165,101620.0,101610.0,0.03349999]
[1762295846568,0.10706,101620.0,101610.0,0.03349999]
[1762295846769,0.10706,101620.0,101610.0,0.23033101]
[1762295846995,0.30387165,101620.0,101610.0,0.03349999]
[1762295847359,0.10706,101620.0,101610.0,0.03349999]
[1762295847635,0.30387165,101620.0,101610.0,0.03349999]
[1762295848299,0.30387165,101620.0,101610.0,0.00949999]
[1762295848480,0.19685039,101600.0,101590.0,0.0245443]
[1762295848679,0.19715039,101600.0,101590.0,0.0005443]
[1762295848880,0.27346039,101600.0,101590.0,0.0005443]
[1762295851721,0.61346039,101600.0,101590.0,0.0005443]
[1762295852148,0.61346039,101600.0,101590.0,0.00154191]
[1762295852363,0.62334945,101600.0,101590.0,0.00154191]
[1762295853371,2.66953172,101600.0,101590.0,0.00154191]
[1762295855600,0.19688915,101580.0,101570.0,8e-05]
[1762295855860,0.29925237,101580.0,101570.0,8e-05]
[1762295856064,0.37487237,101580.0,101570.0,8e-05]
[1762295856593,0.19690853,101570.0,101560.0,0.0004]
[1762295856833,0.19692792,101560.0,101550.0,0.0004]
[1762295857043,0.37475114,101560.0,101550.0,0.0004]
[1762295857272,0.4039963,101560.0,101550.0,0.0004]
[1762295858145,0.40334606,101560.0,101550.0,0.0004]
[1762295858268,2.43952834,101560.0,101550.0,0.0004]
[1762295858718,2.44952833,101560.0,101550.0,0.0004]
[1762295859852,2.3741009,101560.0,101550.0,0.0004]
[1762295860272,0.19694731,101550.0,101540.0,0.01089999]
[1762295860400,0.29504731,101550.0,101540.0,0.00054443]
[1762295862431,2.33122959,101550.0,101540.0,0.00054443]
[1762295862632,0.19698611,101530.0,101520.0,0.0014]
[1762295862836,0.27210953,101530.0,101520.0,0.0014]
[1762295863200,0.32126953,101530.0,101520.0,0.00314727]
[1762295863589,0.32126953,101530.0,101520.0,0.00214727]
[1762295865602,0.33122281,101530.0,101520.0,0.00214727]
[1762295867393,0.19702492,101510.0,101500.0,0.01249999]
[1762295867614,0.19702492,101510.0,101480.0,0.0504]
[1762295867615,2.19704433,101500.0,101480.0,0.0504]
[1762295867832,0.29497848,101490.0,101480.0,0.0504]
[1762295868038,0.35302603,101490.0,101480.0,0.0504]
[1762295868238,0.31684375,101490.0,101480.0,0.0504]
[1762295868646,0.04974,101490.0,101480.0,0.24748316]
[1762295868853,0.07004,101500.0,101490.0,0.033]
[1762295869053,0.02266,101510.0,101500.0,0.047]
[1762295869225,0.28972492,101510.0,101500.0,0.047]
[1762295869437,0.31547492,101510.0,101500.0,0.047]
[1762295869647,0.19704433,101500.0,101490.0,0.04748166]
[1762295869847,0.26734433,101500.0,101490.0,0.04748166]
[1762295871424,0.26734433,101500.0,101490.0,0.00048166]
[1762295871658,0.26734433,101500.0,101490.0,0.04748166]
[1762295873153,0.26734433,101500.0,101490.0,0.04823101]
[1762295873373,0.26734433,101500.0,101490.0,0.00123101]
[1762295874604,0.26734433,101500.0,101490.0,0.04823101]
[1762295880589,0.0927,101510.0,101490.0,0.29631476]
[1762295880784,0.0927,101510.0,101490.0,0.36602541]
[1762295880785,0.02266,101510.0,101490.0,0.36602541]
[1762295881010,0.02266,101510.0,101490.0,0.37802541]
[1762295881327,0.02266,101510.0,101490.0,0.36602541]
[1762295881642,0.02266,101510.0,101500.0,0.15780617]
[1762295881854,0.22173625,101530.0,101520.0,0.024]
[1762295882039,0.29177611,101530.0,101520.0,0.024]
[1762295882254,0.34200611,101530.0,101520.0,0.024]
[1762295883047,0.22173611,101530.0,101520.0,0.024]
[1762295883223,0.22416611,101530.0,101520.0,0.024]
[1762295883626,0.34443611,101530.0,101520.0,0.024]
[1762295885930,0.19701828,101520.0,101500.0,0.42271221]
[1762295886146,0.19701828,101520.0,101510.0,0.024]
[1762295886351,0.19702492,101510.0,101500.0,0.41286]
[1762295886592,0.19702492,101510.0,101490.0,0.04508166]
[1762295886593,0.19704433,101500.0,101490.0,0.04508166]
[1762295886769,0.27837433,101500.0,101490.0,0.04508166]
[1762295887023,0.27837433,101500.0,101490.0,0.06908166]
[1762295887205,0.27837433,101500.0,101490.0,0.00048166]
[1762295887404,0.27837433,101500.0,101490.0,0.02448166]
[1762295887605,0.3089148,101500.0,101490.0,0.00048166]
[1762295887851,0.27837433,101500.0,101490.0,0.00048166]
[1762295888484,0.61837433,101500.0,101490.0,0.00048166]
[1762295889453,0.65455661,101500.0,101490.0,0.00048166]
[1762295890121,0.19706375,101490.0,101480.0,0.0504]
[1762295890333,0.74321602,101490.0,101480.0,0.0504]
[1762295890490,0.23326544,101480.0,101470.0,0.05]
[1762295890690,0.23326544,101480.0,101450.0,0.0946]
[1762295890691,0.19712201,101460.0,101450.0,0.074]
[1762295890897,0.19790201,101460.0,101450.0,0.11874447]
[1762295891096,0.27903201,101460.0,101450.0,0.11874447]
[1762295891307,0.27903201,101460.0,101450.0,0.07414447]
[1762295891506,0.28925042,101460.0,101450.0,0.07414447]
[1762295891710,0.28925042,101460.0,101450.0,0.05014447]
[1762295892294,0.37461364,101460.0,101450.0,0.05014447]
[1762295892734,0.37461364,101460.0,101450.0,0.05189356]
[1762295893302,0.41079592,101460.0,101450.0,0.05189356]
[1762295893754,0.75079592,101460.0,101450.0,0.05189356]
[1762295893957,0.71461364,101460.0,101450.0,0.07589356]
[1762295894364,0.36439523,101460.0,101450.0,0.07589356]
[1762295895009,0.04115,101470.0,101460.0,0.024]
[1762295895453,0.31368201,101460.0,101450.0,0.07414447]
[1762295895734,0.39904523,101460.0,101450.0,0.09474447]
[1762295895910,0.39904523,101460.0,101450.0,0.11874447]
[1762295896263,0.43522751,101460.0,101450.0,0.07414447]
[1762295896377,0.43522751,101460.0,101450.0,0.11874447]
[1762295896589,0.43522751,101460.0,101450.0,0.09474447]
[1762295897299,0.77522751,101460.0,101450.0,0.09474447]
[1762295897845,0.77522751,101460.0,101450.0,0.05014447]
[1762295898501,0.23332372,101450.0,101440.0,0.05]
[1762295898645,0.31480372,101450.0,101440.0,0.05]
[1762295898824,0.65480372,101450.0,101440.0,0.05]
[1762295899428,0.53714144,101450.0,101440.0,0.074]
[1762295899645,0.65289144,101450.0,101440.0,0.074]
[1762295900249,0.65289144,101450.0,101440.0,0.05]
[1762295900457,0.65289144,101450.0,101440.0,0.09468]
[1762295900797,0.68095144,101450.0,101440.0,0.09468]
[1762295901000,0.68095144,101450.0,101440.0,0.05]
[1762295903362,0.34095144,101450.0,101440.0,0.05]
[1762295903725,0.34095144,101450.0,101440.0,0.074]
[1762295904874,0.34095144,101450.0,101440.0,0.27116088]
[1762295904875,0.14381,101450.0,101440.0,0.27116088]
[1762295905076,0.14381,101450.0,101440.0,0.074]
[1762295905482,0.14381,101450.0,101440.0,0.27116088]
[1762295905670,0.14381,101450.0,101440.0,0.074]
[1762295906286,0.24810771,101470.0,101440.0,0.33313003]
[1762295906287,0.32923771,101470.0,101440.0,0.33313003]
[1762295906513,0.66938111,101470.0,101460.0,0.024]
[1762295906715,0.32938111,101470.0,101460.0,0.024]
[1762295907069,0.1440234,101470.0,101460.0,0.22112201]
[1762295907273,0.1440234,101470.0,101460.0,0.024]
[1762295907274,0.0412934,101470.0,101460.0,0.024]
[1762295907484,0.0412934,101470.0,101460.0,0.22112201]
[1762295907698,0.0001434,101470.0,101460.0,0.27300201]
[1762295907906,0.0001434,101470.0,101460.0,0.35509201]
[1762295908113,0.0001434,101470.0,101460.0,0.22112201]
[1762295908321,0.0001434,101470.0,101460.0,0.024]
[1762295908537,0.0001434,101470.0,101450.0,0.08209]
[1762295908538,0.21884599,101470.0,101450.0,0.08209]
[1762295908751,0.29938599,101470.0,101460.0,0.06864]
[1762295908974,0.29938599,101470.0,101460.0,0.024]
[1762295909396,0.29938599,101470.0,101460.0,0.06864]
[1762295909874,0.19713029,101460.0,101450.0,0.34]
[1762295910098,0.19713029,101460.0,101450.0,0.364]
[1762295910321,0.20710111,101470.0,101450.0,0.63366142]
[1762295910535,0.0001434,101470.0,101460.0,0.35509201]
[1762295911408,0.0001434,101470.0,101460.0,0.38000537]
[1762295911838,0.0001434,101470.0,101460.0,0.41618765]
[1762295912044,0.0001434,101470.0,101460.0,0.45132942]
[1762295912257,0.0001434,101470.0,101460.0,0.42641606]
[1762295912473,0.0001434,101470.0,101460.0,0.81686851]
[1762295913106,0.0001434,101470.0,101460.0,0.76641606]
[1762295913521,0.0001434,101470.0,101460.0,0.79161865]
[1762295913888,0.0001434,101470.0,101460.0,0.76641606]
[1762295914094,0.20694656,101520.0,101500.0,0.19703995]
[1762295914303,0.20742822,101520.0,101510.0,0.10851]
[1762295914503,0.00048166,101520.0,101510.0,0.43420492]
[1762295916835,0.00048166,101520.0,101510.0,0.77420492]
[1762295919542,0.00048166,101520.0,101510.0,0.77445469]
[1762295919759,0.00048166,101520.0,101510.0,0.81063697]
[1762295920190,0.00048166,101520.0,101510.0,0.76603697]
[1762295920395,0.00048166,101520.0,101510.0,0.81059697]
[1762295921223,0.00048166,101520.0,101510.0,0.81055697]
[1762295921829,0.00048166,101520.0,101510.0,0.88401282]
[1762295922850,1e-08,101520.0,101510.0,0.88401282]
[1762295923079,0.20680987,101580.0,101570.0,0.024]
[1762295923312,0.20695438,101580.0,101570.0,0.06852]
[1762295923531,0.54695438,101580.0,101570.0,0.10742]
[1762295923704,0.20687811,101580.0,101570.0,0.08342]
[1762295923867,0.00014451,101580.0,101570.0,0.30432853]
[1762295924077,0.00014451,101580.0,101570.0,0.10742]
[1762295924078,0.19703366,101580.0,101570.0,0.10742]
[1762295924289,0.19703366,101580.0,101570.0,0.35454853]
[1762295924493,0.19703366,101580.0,101570.0,0.23399]
[1762295925224,0.19703366,101580.0,101570.0,0.15764]
[1762295925425,0.19703366,101580.0,101570.0,0.23399]
[1762295926981,0.00014451,101580.0,101570.0,0.43089853]
[1762295930536,0.00014451,101580.0,101570.0,0.74689853]
[1762295930715,0.00014451,101580.0,101570.0,0.80708081]
[1762295932350,0.00193579,101590.0,101570.0,0.80708081]
[1762295932559,0.00193579,101590.0,101580.0,0.38364143]
[1762295932755,0.0002,101610.0,101600.0,0.22085039]
[1762295932955,0.0002,101610.0,101600.0,0.35449039]
[1762295933176,0.0002,101610.0,101600.0,0.43084039]
[1762295934591,0.0002,101610.0,101600.0,0.40684039]
[1762295934802,0.0002,101610.0,101600.0,0.51084039]
[1762295934954,0.0002,101610.0,101600.0,0.48684039]
[1762295935152,0.0002,101610.0,101600.0,0.51084039]
[1762295935685,0.0002,101610.0,101600.0,0.48684039]
[1762295935886,0.0002,101610.0,101600.0,0.51084039]
[1762295936685,0.0002,101610.0,101600.0,0.48684039]
[1762295936939,0.0002,101610.0,101600.0,0.51084039]
[1762295938503,0.00047438,101610.0,101600.0,0.48684039]
[1762295938726,0.00047438,101610.0,101600.0,0.51084039]
[1762295938925,0.00047438,101610.0,101600.0,0.88702267]
[1762295939857,0.19675453,101650.0,101630.0,0.19679228]
[1762295940012,0.1972358,101650.0,101640.0,0.04444]
[1762295940208,0.19723483,101650.0,101640.0,0.28011292]
[1762295940433,0.00048127,101650.0,101640.0,0.30411292]
[1762295940636,0.00048127,101650.0,101640.0,0.33033292]
[1762295940814,0.19723483,101650.0,101640.0,0.23391]
[1762295941021,0.19723483,101650.0,101640.0,0.20991]
[1762295941468,0.19723483,101650.0,101640.0,0.15756]
[1762295941610,0.19723483,101650.0,101640.0,0.13356]
[1762295941811,0.29645483,101650.0,101640.0,0.04444]
[1762295942036,0.19681165,101620.0,101610.0,0.0389]
[1762295942236,0.19681165,101620.0,101610.0,0.0833]
[1762295942443,0.24955165,101620.0,101610.0,0.0389]
[1762295942661,0.19685039,101600.0,101590.0,0.11525]
[1762295942863,0.19685039,101600.0,101590.0,0.08334]
[1762295943089,0.19685039,101600.0,101570.0,0.0389]
[1762295943090,0.19688915,101580.0,101570.0,0.0389]
[1762295943267,0.19688915,101580.0,101560.0,0.07635]
[1762295943268,0.19690853,101570.0,101560.0,0.07635]
[1762295943529,0.19687149,101590.0,101570.0,0.19690831]
[1762295943734,0.19687149,101590.0,101580.0,0.08334]
[1762295944297,0.19687149,101590.0,101580.0,0.28022915]
[1762295944435,0.19687149,101590.0,101580.0,0.08334]
[1762295944632,0.24961149,101590.0,101580.0,0.04444]
[1762295945437,0.24961149,101590.0,101580.0,0.06844]
[1762295945637,0.32269149,101590.0,101580.0,0.04444]
[1762295946668,0.26771142,101590.0,101580.0,0.04444]
[1762295947341,0.19690853,101570.0,101550.0,0.24566337]
[1762295947691,0.19692792,101560.0,101550.0,0.03904451]
[1762295947916,0.19692792,101560.0,101550.0,0.08348451]
[1762295948121,0.19692792,101560.0,101550.0,0.03904451]
[1762295948319,0.30746853,101570.0,101550.0,0.28043181]
[1762295948504,0.30746853,101570.0,101550.0,0.30443181]
[1762295948872,0.23438853,101570.0,101560.0,0.19692792]
[1762295949203,0.03748,101570.0,101560.0,0.22092792]
[1762295949996,0.23438853,101570.0,101560.0,0.22092792]
[1762295950402,0.19692792,101560.0,101550.0,0.28043182]
[1762295950820,0.30888853,101570.0,101550.0,0.35438182]
[1762295950962,0.30888853,101570.0,101550.0,0.33038182]
[1762295951167,0.30888853,101570.0,101560.0,0.024]
[1762295951580,0.35587853,101570.0,101550.0,0.28043182]
[1762295951904,0.35587853,101570.0,101550.0,0.37659182]
[1762295952100,0.35587853,101570.0,101550.0,0.35259182]
[1762295952312,0.35587853,101570.0,101560.0,0.19692792]
[1762295952699,0.35587853,101570.0,101550.0,0.30443182]
[1762295953123,0.35587853,101570.0,101560.0,0.22092792]
[1762295953304,0.35587853,101570.0,101550.0,0.28043182]
[1762295953516,0.35587853,101570.0,101560.0,0.024]
[1762295953721,0.35587853,101570.0,101560.0,0.22092792]
[1762295953722,0.15897,101570.0,101560.0,0.22092792]
[1762295954100,0.03748,101570.0,101560.0,0.22092792]
[1762295955627,0.27138915,101580.0,101570.0,0.19690853]
[1762295955813,0.10942,101580.0,101570.0,0.22090853]
[1762295956115,0.08191,101580.0,101570.0,0.24126853]
[1762295956316,0.03492,101580.0,101570.0,0.30072853]
[1762295956471,0.03492,101580.0,101570.0,0.35067853]
[1762295956666,0.53478322,101590.0,101580.0,0.19688915]
[1762295956868,0.37748,101600.0,101590.0,0.19686977]
[1762295957179,0.34,101600.0,101590.0,0.31897977]
[1762295957382,0.00022443,101610.0,101600.0,0.22085039]
[1762295957582,0.00022443,101610.0,101600.0,0.34296039]
[1762295958853,0.00022443,101610.0,101600.0,0.31896039]
[1762295959362,0.00022443,101610.0,101600.0,0.68415749]
[1762295959566,0.00022443,101610.0,101600.0,0.72033977]
[1762295959894,0.00022443,101610.0,101600.0,0.75402504]
[1762295960603,1e-08,101610.0,101600.0,0.72878536]
[1762295960803,0.21079574,101670.0,101650.0,0.19675212]
[1762295961169,0.21127731,101670.0,101650.0,0.24115313]
[1762295961385,0.55127731,101670.0,101650.0,0.32193313]
[1762295961557,0.21127731,101670.0,101650.0,0.32193313]
[1762295962035,0.55127731,101670.0,101650.0,0.32193313]
[1762295962237,0.55127731,101670.0,101650.0,0.27753313]
[1762295962478,0.55127731,101670.0,101660.0,0.0444]
[1762295962852,0.59826731,101670.0,101660.0,0.0444]
[1762295963054,0.67276731,101670.0,101660.0,0.0444]
[1762295963253,0.19673421,101660.0,101630.0,0.31421863]
[1762295963457,0.03492,101640.0,101630.0,0.24209189]
[1762295963656,0.23169292,101640.0,101630.0,0.07986]
[1762295964175,0.19677292,101640.0,101630.0,0.20197]
[1762295964539,0.23167437,101650.0,101630.0,0.39876121]
[1762295964909,0.19677292,101640.0,101630.0,0.20197]
[1762295965043,0.24376292,101640.0,101620.0,0.23227165]
[1762295965243,0.24151271,101650.0,101630.0,0.24115228]
[1762295965643,0.31601271,101650.0,101630.0,0.24115228]
[1762295965848,0.31601271,101650.0,101640.0,0.19677292]
[1762295966068,0.31601271,101650.0,101630.0,0.24115228]
[1762295966498,0.19677292,101640.0,101630.0,0.04436]
[1762295966714,0.24376292,101640.0,101630.0,0.04436]
[1762295966870,0.24376292,101640.0,101620.0,0.07982]
[1762295966871,0.19679228,101630.0,101620.0,0.07982]
[1762295967070,0.19679228,101630.0,101620.0,0.04436]
[1762295967071,0.31551228,101630.0,101620.0,0.04436]
[1762295968096,0.31599355,101630.0,101620.0,0.04436]
[1762295969280,0.32602962,101630.0,101620.0,0.04436]
[1762295969648,0.31599355,101630.0,101620.0,0.04436]
[1762295971660,0.32583684,101630.0,101620.0,0.04436]
[1762295972908,0.20668326,101620.0,101590.0,0.20658639]
[1762295973111,0.03711246,101610.0,101600.0,0.26086741]
[1762295973311,0.23195102,101610.0,101600.0,0.24116741]
[1762295973751,0.34681102,101610.0,101600.0,0.04432]
[1762295977200,0.34681102,101610.0,101580.0,0.24318243]
[1762295977201,0.19686977,101590.0,101580.0,0.24318243]
[1762295977403,0.19686977,101590.0,101580.0,0.28750243]
[1762295977630,0.26566785,101600.0,101580.0,0.28750243]
[1762295978009,0.27804977,101590.0,101580.0,0.25105243]
[1762295978215,0.34684977,101590.0,101580.0,0.25105243]
[1762295978730,0.14998,101590.0,101580.0,0.25105243]
[1762295979355,0.14998,101590.0,101580.0,0.27505243]
[1762295979778,0.14998,101590.0,101580.0,0.25105243]
[1762295980274,0.14998,101590.0,101580.0,0.27505243]
[1762295980483,0.14998,101590.0,101580.0,0.25105243]
[1762295980643,0.14998,101590.0,101580.0,0.27505243]
[1762295981057,0.14998,101590.0,101580.0,0.25105243]
[1762295981661,0.15114,101590.0,101580.0,0.25105243]
[1762295982476,0.15114,101590.0,101580.0,0.24120798]
[1762295982679,0.19689846,101580.0,101560.0,0.57186313]
[1762295982916,0.28384846,101580.0,101570.0,0.04432]
[1762295983134,0.19689846,101580.0,101570.0,0.04432]
[1762295983324,0.24491846,101580.0,101570.0,0.04432]
[1762295983489,0.27891846,101580.0,101570.0,0.04432]
[1762295983697,0.34691846,101580.0,101570.0,0.04432]
[1762295985300,0.19690853,101570.0,101560.0,0.04446451]
[1762295985481,0.28476853,101570.0,101560.0,0.04446451]
[1762295986309,0.21676853,101570.0,101560.0,0.24139243]
[1762295986519,0.28476853,101570.0,101560.0,0.24139243]
[1762295986748,0.28476853,101570.0,101560.0,0.04446451]
[1762295987936,0.28476853,101570.0,101560.0,0.24139243]
[1762295988144,0.28476853,101570.0,101560.0,0.04446451]
[1762295990608,0.28476853,101570.0,101560.0,0.24139243]
[1762295990812,0.28476853,101570.0,101560.0,0.04446451]
[1762295991019,0.28476853,101570.0,101560.0,0.24139243]
[1762295991020,0.21676853,101570.0,101560.0,0.24139243]
[1762295991159,0.374,101580.0,101570.0,0.19690853]
[1762295991359,0.39519647,101590.0,101580.0,0.19688915]
[1762295991566,0.73519647,101590.0,101580.0,0.19688915]
[1762295991766,0.57650322,101590.0,101580.0,0.19688915]
[1762295991961,0.08314,101590.0,101580.0,0.24124915]
[1762295992190,0.18848322,101610.0,101600.0,0.19685039]
[1762295992392,0.38531424,101610.0,101600.0,0.19685039]
[1762295992602,0.43333424,101610.0,101600.0,0.19685039]
[1762295992868,0.19685039,101600.0,101590.0,0.23263977]
[1762295993354,0.19685039,101600.0,101590.0,0.27830977]
[1762295993664,0.19685039,101600.0,101590.0,0.03577]
[1762295994230,0.19685039,101600.0,101590.0,0.27830977]
[1762295994436,0.19685039,101600.0,101590.0,0.34420977]
[1762295995037,0.38531424,101610.0,101590.0,0.34420977]
[1762295995235,0.38531424,101610.0,101590.0,0.27830977]
[1762295995432,0.31731424,101610.0,101590.0,0.34420977]
[1762295995812,0.38531424,101610.0,101590.0,0.34420977]
[1762295996008,0.19685039,101600.0,101590.0,0.34420977]
[1762295996249,0.38531424,101610.0,101590.0,0.38856977]
[1762295996405,0.38531424,101610.0,101590.0,0.32266977]
[1762295996603,0.38531424,101610.0,101590.0,0.38856977]
[1762295997235,0.19685039,101600.0,101590.0,0.38856977]
[1762295997642,0.38531424,101610.0,101590.0,0.38856977]
[1762295997856,0.31731424,101610.0,101590.0,0.38856977]
[1762295998231,0.38531424,101610.0,101590.0,0.38856977]
[1762295998878,0.38531424,101610.0,101600.0,0.19685039]
[1762295999054,0.38531424,101610.0,101590.0,0.38856977]
[1762296000092,0.19685039,101600.0,101590.0,0.38856977]
[1762296000295,0.19688645,101590.0,101570.0,0.36725612]
[1762296000521,0.19686977,101590.0,101580.0,0.04432]
[1762296000732,0.19686977,101590.0,101580.0,0.15589]
[1762296000933,0.19686977,101590.0,101580.0,0.04567]
[1762296001065,0.19686977,101590.0,101570.0,0.12688379]
[1762296001066,0.19688915,101580.0,101570.0,0.03577]
[1762296001405,0.19690853,101570.0,101550.0,0.33367227]
[1762296001616,0.19692792,101560.0,101550.0,0.0611283]
[1762296001819,0.19692792,101560.0,101550.0,0.08023451]
[1762296002114,0.19692792,101560.0,101550.0,0.38875182]
[1762296002779,0.22993853,101570.0,101550.0,0.38875182]
[1762296002980,0.19692792,101560.0,101550.0,0.38875182]
[1762296003203,0.22993853,101570.0,101560.0,0.19692792]
[1762296003730,0.29772853,101570.0,101560.0,0.04432]
[1762296004378,0.29772853,101570.0,101550.0,0.08023451]
[1762296004379,0.19692792,101560.0,101550.0,0.08023451]
[1762296004913,0.19791792,101560.0,101550.0,0.08023451]
[1762296005325,0.19791792,101560.0,101550.0,0.27718182]
[1762296005759,0.19791792,101560.0,101550.0,0.00014451]
[1762296006619,0.26524792,101560.0,101550.0,0.00014451]
[1762296007032,0.27526821,101560.0,101550.0,0.00014451]
[1762296008070,0.31145049,101560.0,101550.0,0.00014451]
[1762296008264,0.65145049,101560.0,101550.0,0.00014451]
[1762296012295,2.65145049,101560.0,101550.0,0.00014451]
[1762296012437,2.65145049,101560.0,101550.0,0.00183076]
[1762296012635,2.66145048,101560.0,101550.0,0.00183076]
[1762296013262,2.67145047,101560.0,101550.0,0.00183076]
[1762296013865,0.19700551,101520.0,101510.0,0.24255315]
[1762296014188,0.19714962,101520.0,101510.0,0.28691315]
[1762296014755,0.00014411,101520.0,101510.0,0.28691315]
[1762296014953,0.20152962,101520.0,101510.0,0.25114315]
[1762296015154,0.26963962,101520.0,101510.0,0.25114315]
[1762296015408,0.26963962,101520.0,101510.0,0.04436]
[1762296016025,0.19702492,101510.0,101500.0,0.19739352]
[1762296016229,0.29948492,101510.0,101500.0,0.0004]
[1762296016428,0.10246,101510.0,101500.0,0.19744433]
[1762296016628,0.10445246,101510.0,101500.0,0.19744433]
[1762296016969,0.03570246,101510.0,101500.0,0.19744433]
[1762296017371,0.03371,101510.0,101500.0,0.19744433]
[1762296017732,0.10445246,101510.0,101500.0,0.0004]
[1762296017941,0.64147738,101510.0,101500.0,0.0004]
[1762296018141,0.6756672,101510.0,101500.0,0.0004]
[1762296019534,0.47864228,101510.0,101500.0,0.19744433]
[1762296019740,0.6756672,101510.0,101500.0,0.19744433]
[1762296019943,0.47864228,101510.0,101500.0,0.00164859]
[1762296020148,0.6756672,101510.0,101500.0,0.00164859]
[1762296021946,0.68566719,101510.0,101500.0,0.00164859]
[1762296022686,0.6756672,101510.0,101500.0,0.00164859]
[1762296023313,0.68566719,101510.0,101500.0,0.00164859]
[1762296024257,0.47864228,101510.0,101500.0,0.19869292]
[1762296024464,0.44246,101510.0,101500.0,0.19869292]
[1762296025029,0.47864228,101510.0,101500.0,0.19869292]
[1762296025431,0.44246,101510.0,101500.0,0.19869292]
[1762296025653,0.10246,101510.0,101500.0,0.19869292]
[1762296025834,0.03303,101510.0,101500.0,0.26792292]
[1762296026027,0.03303,101510.0,101500.0,0.24392292]
[1762296026314,0.03303,101510.0,101500.0,0.26792292]
[1762296026533,0.08550733,101520.0,101510.0,0.22102492]
[1762296026701,0.08550733,101520.0,101510.0,0.25348492]
[1762296027325,0.08550733,101520.0,101510.0,0.29871492]
[1762296027975,0.08550733,101520.0,101510.0,0.34307492]
[1762296028526,0.08550733,101520.0,101510.0,0.40695492]
[1762296029981,0.00014411,101520.0,101510.0,0.40695492]
[1762296030199,0.00014411,101520.0,101510.0,0.38295492]
[1762296032299,0.00014411,101520.0,101510.0,0.38395371]
[1762296032884,0.00014411,101520.0,101510.0,0.32007371]
[1762296033458,0.00014411,101520.0,101510.0,0.40615371]
[1762296034259,0.00014411,101520.0,101510.0,0.7713675]
[1762296034616,1e-08,101520.0,101510.0,0.80498588]
[1762296034795,1e-08,101520.0,101510.0,0.77977209]
[1762296035119,1e-08,101520.0,101510.0,0.83022454]
[1762296035882,1e-08,101520.0,101510.0,0.49022454]
[1762296036091,1e-08,101520.0,101510.0,0.46532134]
[1762296036310,1e-08,101520.0,101510.0,0.43170296]
[1762296037074,1e-08,101520.0,101510.0,0.80532134]
[1762296038554,1e-08,101520.0,101510.0,0.77977209]
[1762296038755,1e-08,101520.0,101510.0,0.79660616]
[1762296039979,0.23980433,101560.0,101510.0,0.75224616]
[1762296040205,0.28235079,101530.0,101510.0,0.372225]
[1762296040427,0.28235079,101530.0,101520.0,0.04432]
[1762296040803,0.28235079,101530.0,101520.0,0.04506904]
[1762296040804,0.28263079,101530.0,101520.0,0.04506904]